Workbook

Sheet 儀表板
N1: =BudgetName&" 互動式預算" -> 陳家 2012 互動式預算
A3: =圖表資料!C38 -> NT$4,000
D5: 收入
A7: =圖表資料!C39 -> NT$5,933
D9: 費用
A11: =圖表資料!D40& "NT$"&圖表資料!C40 -> -NT$1933
D13: 現金流

Sheet 預算
C1: 一月 | D1: 二月 | E1: 三月 | F1: 四月 | G1: 五月 | H1: 六月 | I1: 七月 | J1: 八月 | K1: 九月 | L1: 十月 | M1: 十一月 | N1: 十二月 | O1: 年度 | P1: 平均值
B5: 期初餘額 | C5: 1000
B6: 總收入 | C6: =SUM(tblIncome[一月]) -> 4222 | D6: =SUM(tblIncome[二月]) -> 9033 | E6: =SUM(tblIncome[三月]) -> 4000 | F6: =SUM(tblIncome[四月]) -> 4045 | G6: =SUM(tblIncome[五月]) -> 9000 | H6: =SUM(tblIncome[六月]) -> 1525 | I6: =SUM(tblIncome[七月]) -> 1500 | J6: =SUM(tblIncome[八月]) -> 6500 | K6: =SUM(tblIncome[九月]) -> 4000 | L6: =SUM(tblIncome[十月]) -> 4000 | M6: =SUM(tblIncome[十一月]) -> 9000 | N6: =SUM(tblIncome[十二月]) -> 4000 | O6: =SUM(tblIncome[年度]) -> 60825 | P6: =O6/12 -> 5069
B7: 總支出 | C7: =SUM(tblExpenseCategory_01[一月],tblExpenseCategory_02[一月],tblExpenseCategory_03[一月],tblExpenseCategory_04[一月],tblExpenseCategory_05[一月],tblExpenseCategory_06[一月],tblExpenseCategory_07[一月],tblExpenseCategory_08[一月],tblExpenseCategory_09[一月],tblExpenseCategory_10[一月],tblExpenseCategory_11[一月],tblExpenseCategory_12[一月],tblExpenseCategory_13[一月],tblExpenseCategory_14[一月],tblExpenseCategory_15[一月]) -> 7936 | D7: =SUM(tblExpenseCategory_01[二月],tblExpenseCategory_02[二月],tblExpenseCategory_03[二月],tblExpenseCategory_04[二月],tblExpenseCategory_05[二月],tblExpenseCategory_06[二月],tblExpenseCategory_07[二月],tblExpenseCategory_08[二月],tblExpenseCategory_09[二月],tblExpenseCategory_10[二月],tblExpenseCategory_11[二月],tblExpenseCategory_12[二月],tblExpenseCategory_13[二月],tblExpenseCategory_14[二月],tblExpenseCategory_15[二月]) -> 5243 | E7: =SUM(tblExpenseCategory_01[三月],tblExpenseCategory_02[三月],tblExpenseCategory_03[三月],tblExpenseCategory_04[三月],tblExpenseCategory_05[三月],tblExpenseCategory_06[三月],tblExpenseCategory_07[三月],tblExpenseCategory_08[三月],tblExpenseCategory_09[三月],tblExpenseCategory_10[三月],tblExpenseCategory_11[三月],tblExpenseCategory_12[三月],tblExpenseCategory_13[三月],tblExpenseCategory_14[三月],tblExpenseCategory_15[三月]) -> 5933 | F7: =SUM(tblExpenseCategory_01[四月],tblExpenseCategory_02[四月],tblExpenseCategory_03[四月],tblExpenseCategory_04[四月],tblExpenseCategory_05[四月],tblExpenseCategory_06[四月],tblExpenseCategory_07[四月],tblExpenseCategory_08[四月],tblExpenseCategory_09[四月],tblExpenseCategory_10[四月],tblExpenseCategory_11[四月],tblExpenseCategory_12[四月],tblExpenseCategory_13[四月],tblExpenseCategory_14[四月],tblExpenseCategory_15[四月]) -> 5858 | G7: =SUM(tblExpenseCategory_01[五月],tblExpenseCategory_02[五月],tblExpenseCategory_03[五月],tblExpenseCategory_04[五月],tblExpenseCategory_05[五月],tblExpenseCategory_06[五月],tblExpenseCategory_07[五月],tblExpenseCategory_08[五月],tblExpenseCategory_09[五月],tblExpenseCategory_10[五月],tblExpenseCategory_11[五月],tblExpenseCategory_12[五月],tblExpenseCategory_13[五月],tblExpenseCategory_14[五月],tblExpenseCategory_15[五月]) -> 5468 | H7: =SUM(tblExpenseCategory_01[六月],tblExpenseCategory_02[六月],tblExpenseCategory_03[六月],tblExpenseCategory_04[六月],tblExpenseCategory_05[六月],tblExpenseCategory_06[六月],tblExpenseCategory_07[六月],tblExpenseCategory_08[六月],tblExpenseCategory_09[六月],tblExpenseCategory_10[六月],tblExpenseCategory_11[六月],tblExpenseCategory_12[六月],tblExpenseCategory_13[六月],tblExpenseCategory_14[六月],tblExpenseCategory_15[六月]) -> 5118 | I7: =SUM(tblExpenseCategory_01[七月],tblExpenseCategory_02[七月],tblExpenseCategory_03[七月],tblExpenseCategory_04[七月],tblExpenseCategory_05[七月],tblExpenseCategory_06[七月],tblExpenseCategory_07[七月],tblExpenseCategory_08[七月],tblExpenseCategory_09[七月],tblExpenseCategory_10[七月],tblExpenseCategory_11[七月],tblExpenseCategory_12[七月],tblExpenseCategory_13[七月],tblExpenseCategory_14[七月],tblExpenseCategory_15[七月]) -> 5743 | J7: =SUM(tblExpenseCategory_01[八月],tblExpenseCategory_02[八月],tblExpenseCategory_03[八月],tblExpenseCategory_04[八月],tblExpenseCategory_05[八月],tblExpenseCategory_06[八月],tblExpenseCategory_07[八月],tblExpenseCategory_08[八月],tblExpenseCategory_09[八月],tblExpenseCategory_10[八月],tblExpenseCategory_11[八月],tblExpenseCategory_12[八月],tblExpenseCategory_13[八月],tblExpenseCategory_14[八月],tblExpenseCategory_15[八月]) -> 5353 | K7: =SUM(tblExpenseCategory_01[九月],tblExpenseCategory_02[九月],tblExpenseCategory_03[九月],tblExpenseCategory_04[九月],tblExpenseCategory_05[九月],tblExpenseCategory_06[九月],tblExpenseCategory_07[九月],tblExpenseCategory_08[九月],tblExpenseCategory_09[九月],tblExpenseCategory_10[九月],tblExpenseCategory_11[九月],tblExpenseCategory_12[九月],tblExpenseCategory_13[九月],tblExpenseCategory_14[九月],tblExpenseCategory_15[九月]) -> 5983 | L7: =SUM(tblExpenseCategory_01[十月],tblExpenseCategory_02[十月],tblExpenseCategory_03[十月],tblExpenseCategory_04[十月],tblExpenseCategory_05[十月],tblExpenseCategory_06[十月],tblExpenseCategory_07[十月],tblExpenseCategory_08[十月],tblExpenseCategory_09[十月],tblExpenseCategory_10[十月],tblExpenseCategory_11[十月],tblExpenseCategory_12[十月],tblExpenseCategory_13[十月],tblExpenseCategory_14[十月],tblExpenseCategory_15[十月]) -> 5943 | M7: =SUM(tblExpenseCategory_01[十一月],tblExpenseCategory_02[十一月],tblExpenseCategory_03[十一月],tblExpenseCategory_04[十一月],tblExpenseCategory_05[十一月],tblExpenseCategory_06[十一月],tblExpenseCategory_07[十一月],tblExpenseCategory_08[十一月],tblExpenseCategory_09[十一月],tblExpenseCategory_10[十一月],tblExpenseCategory_11[十一月],tblExpenseCategory_12[十一月],tblExpenseCategory_13[十一月],tblExpenseCategory_14[十一月],tblExpenseCategory_15[十一月]) -> 5058 | N7: =SUM(tblExpenseCategory_01[十二月],tblExpenseCategory_02[十二月],tblExpenseCategory_03[十二月],tblExpenseCategory_04[十二月],tblExpenseCategory_05[十二月],tblExpenseCategory_06[十二月],tblExpenseCategory_07[十二月],tblExpenseCategory_08[十二月],tblExpenseCategory_09[十二月],tblExpenseCategory_10[十二月],tblExpenseCategory_11[十二月],tblExpenseCategory_12[十二月],tblExpenseCategory_13[十二月],tblExpenseCategory_14[十二月],tblExpenseCategory_15[十二月]) -> 4958 | O7: =SUM(tblExpenseCategory_01[年度],tblExpenseCategory_02[年度],tblExpenseCategory_03[年度],tblExpenseCategory_04[年度],tblExpenseCategory_05[年度],tblExpenseCategory_06[年度],tblExpenseCategory_07[年度],tblExpenseCategory_08[年度],tblExpenseCategory_09[年度],tblExpenseCategory_10[年度],tblExpenseCategory_11[年度],tblExpenseCategory_12[年度],tblExpenseCategory_13[年度],tblExpenseCategory_14[年度],tblExpenseCategory_15[年度]) -> 68594 | P7: =O7/12 -> 5716
B8: 淨收入 | C8: =C6-C7 -> -3714 | D8: =D6-D7 -> 3790 | E8: -1933 | F8: -1813 | G8: 3532 | H8: -3593 | I8: -4243 | J8: 1147 | K8: -1983 | L8: -1943 | M8: 3942 | N8: -958 | O8: -7769 | P8: =O8/12 -> -647
B9: 總現金流 | C9: =C5+C6-C7 -> -2714 | D9: =C9+D6-D7 -> 1076 | E9: =D9+E6-E7 -> -857 | F9: -2670 | G9: 862 | H9: -2731 | I9: -6974 | J9: -5827 | K9: -7810 | L9: -9753 | M9: -5811 | N9: -6769
B12: 收入
B13: 薪水和小費 | C13: 4000 | D13: 4000 | E13: 4000 | F13: 4000 | G13: 4000 | H13: 1000 | I13: 1000 | J13: 1000 | K13: 4000 | L13: 4000 | M13: 4000 | N13: 4000 | O13: =SUM(tblIncome[[#This Row],[一月]:[十二月]]) -> 39000 | P13: =tblIncome[[#This Row],[年度]]/12 -> 3250
B14: 利息收入 | C14: 222 | D14: 33 | F14: 45 | H14: 25 | O14: =SUM(tblIncome[[#This Row],[一月]:[十二月]]) -> 325 | P14: =tblIncome[[#This Row],[年度]]/12 -> 27
B15: 股息 | D15: 5000 | G15: 5000 | J15: 5000 | M15: 5000 | O15: =SUM(tblIncome[[#This Row],[一月]:[十二月]]) -> 20000 | P15: =tblIncome[[#This Row],[年度]]/12 -> 1667
B16: 退款 / 費用補助 | H16: 500 | I16: 500 | J16: 500 | O16: =SUM(tblIncome[[#This Row],[一月]:[十二月]]) -> 1500 | P16: =tblIncome[[#This Row],[年度]]/12 -> 125
B17: 其他 | O17: =SUM(tblIncome[[#This Row],[一月]:[十二月]]) -> 0 | P17: =tblIncome[[#This Row],[年度]]/12 -> 0
B18: 總收入 | C18: =SUM(tblIncome[一月]) -> 4222 | D18: =SUM(tblIncome[二月]) -> 9033 | E18: =SUM(tblIncome[三月]) -> 4000 | F18: =SUM(tblIncome[四月]) -> 4045 | G18: =SUM(tblIncome[五月]) -> 9000 | H18: =SUM(tblIncome[六月]) -> 1525 | I18: =SUM(tblIncome[七月]) -> 1500 | J18: =SUM(tblIncome[八月]) -> 6500 | K18: =SUM(tblIncome[九月]) -> 4000 | L18: =SUM(tblIncome[十月]) -> 4000 | M18: =SUM(tblIncome[十一月]) -> 9000 | N18: =SUM(tblIncome[十二月]) -> 4000 | O18: =SUM(tblIncome[年度]) -> 60825 | P18: =tblIncome[[#Totals],[年度]]/12 -> 5069
B21: 家庭支出
B22: 貸款 / 房租 | C22: 850 | D22: 850 | E22: 850 | F22: 850 | G22: 850 | H22: 850 | I22: 850 | J22: 850 | K22: 850 | L22: 850 | M22: 900 | N22: 900 | O22: =SUM(tblExpenseCategory_01[[#This Row],[一月]:[十二月]]) -> 10300 | P22: =tblExpenseCategory_01[[#This Row],[年度]]/12 -> 858
B23: 電 | C23: 200 | D23: 200 | E23: 175 | F23: 150 | G23: 150 | H23: 175 | I23: 225 | J23: 275 | K23: 200 | L23: 150 | M23: 150 | N23: 150 | O23: =SUM(tblExpenseCategory_01[[#This Row],[一月]:[十二月]]) -> 2200 | P23: =tblExpenseCategory_01[[#This Row],[年度]]/12 -> 183
B24: 電話 | C24: 50 | D24: 50 | E24: 100 | F24: 100 | G24: 50 | H24: 50 | I24: 100 | J24: 100 | K24: 50 | L24: 50 | M24: 50 | N24: 50 | O24: =SUM(tblExpenseCategory_01[[#This Row],[一月]:[十二月]]) -> 800 | P24: =tblExpenseCategory_01[[#This Row],[年度]]/12 -> 67
B25: 有線電視 / 衛星電視 | C25: 69 | D25: 69 | E25: 69 | F25: 69 | G25: 69 | H25: 69 | I25: 69 | J25: 69 | K25: 69 | L25: 69 | M25: 69 | N25: 69 | O25: =SUM(tblExpenseCategory_01[[#This Row],[一月]:[十二月]]) -> 828 | P25: =tblExpenseCategory_01[[#This Row],[年度]]/12 -> 69
B26: 網路 | C26: 39 | D26: 39 | E26: 39 | F26: 39 | G26: 39 | H26: 39 | I26: 39 | J26: 39 | K26: 39 | L26: 39 | M26: 39 | N26: 39 | O26: =SUM(tblExpenseCategory_01[[#This Row],[一月]:[十二月]]) -> 468 | P26: =tblExpenseCategory_01[[#This Row],[年度]]/12 -> 39
B27: =UPPER("合計" & B21) -> 合計家庭支出 | C27: =SUM(tblExpenseCategory_01[一月]) -> 1208 | D27: =SUM(tblExpenseCategory_01[二月]) -> 1208 | E27: =SUM(tblExpenseCategory_01[三月]) -> 1233 | F27: =SUM(tblExpenseCategory_01[四月]) -> 1208 | G27: =SUM(tblExpenseCategory_01[五月]) -> 1158 | H27: =SUM(tblExpenseCategory_01[六月]) -> 1183 | I27: =SUM(tblExpenseCategory_01[七月]) -> 1283 | J27: =SUM(tblExpenseCategory_01[八月]) -> 1333 | K27: =SUM(tblExpenseCategory_01[九月]) -> 1208 | L27: =SUM(tblExpenseCategory_01[十月]) -> 1158 | M27: =SUM(tblExpenseCategory_01[十一月]) -> 1208 | N27: =SUM(tblExpenseCategory_01[十二月]) -> 1208 | O27: =SUM(tblExpenseCategory_01[年度]) -> 14596 | P27: =tblExpenseCategory_01[[#Totals],[年度]]/12 -> 1216
B30: 每日開銷
B31: 日常雜貨 | C31: 345 | D31: 250 | E31: 200 | F31: 400 | G31: 350 | H31: 250 | I31: 400 | J31: 350 | K31: 250 | L31: 400 | M31: 350 | N31: 250 | O31: =SUM(tblExpenseCategory_02[[#This Row],[一月]:[十二月]]) -> 3795 | P31: =tblExpenseCategory_02[[#This Row],[年度]]/12 -> 316
B32: 衣物 | C32: 300 | F32: 300 | I32: 300 | L32: 300 | O32: =SUM(tblExpenseCategory_02[[#This Row],[一月]:[十二月]]) -> 1200 | P32: =tblExpenseCategory_02[[#This Row],[年度]]/12 -> 100
B33: 用餐 / 外食 | C33: 125 | D33: 125 | E33: 300 | F33: 125 | G33: 125 | H33: 200 | I33: 125 | J33: 125 | K33: 125 | L33: 125 | M33: 125 | N33: 125 | O33: =SUM(tblExpenseCategory_02[[#This Row],[一月]:[十二月]]) -> 1750 | P33: =tblExpenseCategory_02[[#This Row],[年度]]/12 -> 146
B34: 沙龍 / 理髮 | C34: 25 | E34: 50 | G34: 25 | I34: 50 | K34: 25 | M34: 100 | O34: =SUM(tblExpenseCategory_02[[#This Row],[一月]:[十二月]]) -> 275 | P34: =tblExpenseCategory_02[[#This Row],[年度]]/12 -> 23
B35: 其他 | O35: =SUM(tblExpenseCategory_02[[#This Row],[一月]:[十二月]]) -> 0 | P35: =tblExpenseCategory_02[[#This Row],[年度]]/12 -> 0
B36: =UPPER("合計" & B30) -> 合計每日開銷 | C36: =SUM(tblExpenseCategory_02[一月]) -> 795 | D36: =SUM(tblExpenseCategory_02[二月]) -> 375 | E36: =SUM(tblExpenseCategory_02[三月]) -> 550 | F36: =SUM(tblExpenseCategory_02[四月]) -> 825 | G36: =SUM(tblExpenseCategory_02[五月]) -> 500 | H36: =SUM(tblExpenseCategory_02[六月]) -> 450 | I36: =SUM(tblExpenseCategory_02[七月]) -> 875 | J36: =SUM(tblExpenseCategory_02[八月]) -> 475 | K36: =SUM(tblExpenseCategory_02[九月]) -> 400 | L36: =SUM(tblExpenseCategory_02[十月]) -> 825 | M36: =SUM(tblExpenseCategory_02[十一月]) -> 575 | N36: =SUM(tblExpenseCategory_02[十二月]) -> 375 | O36: =SUM(tblExpenseCategory_02[年度]) -> 7020 | P36: =tblExpenseCategory_02[[#Totals],[年度]]/12 -> 585
B39: 子女
B40: 學校用品 | C40: 123 | E40: 100 | J40: 345 | O40: =SUM(tblExpenseCategory_03[[#This Row],[一月]:[十二月]]) -> 568 | P40: =tblExpenseCategory_03[[#This Row],[年度]]/12 -> 47
B41: 衣物 | D41: 100 | G41: 100 | K41: 100 | N41: 100 | O41: =SUM(tblExpenseCategory_03[[#This Row],[一月]:[十二月]]) -> 400 | P41: =tblExpenseCategory_03[[#This Row],[年度]]/12 -> 33
B42: 學校午餐 | C42: 50 | D42: 50 | E42: 50 | F42: 50 | G42: 50 | H42: 50 | K42: 50 | L42: 50 | M42: 50 | N42: 50 | O42: =SUM(tblExpenseCategory_03[[#This Row],[一月]:[十二月]]) -> 500 | P42: =tblExpenseCategory_03[[#This Row],[年度]]/12 -> 42
B43: 醫療 | C43: 200 | D43: 200 | E43: 200 | F43: 200 | G43: 200 | H43: 200 | I43: 200 | J43: 200 | K43: 200 | L43: 200 | M43: 200 | N43: 200 | O43: =SUM(tblExpenseCategory_03[[#This Row],[一月]:[十二月]]) -> 2400 | P43: =tblExpenseCategory_03[[#This Row],[年度]]/12 -> 200
B44: 其他 | C44: 2000 | D44: 150 | H44: 200 | L44: 100 | O44: =SUM(tblExpenseCategory_03[[#This Row],[一月]:[十二月]]) -> 2450 | P44: =tblExpenseCategory_03[[#This Row],[年度]]/12 -> 204
B45: =UPPER("合計" & B39) -> 合計子女 | C45: =SUM(tblExpenseCategory_03[一月]) -> 2373 | D45: =SUM(tblExpenseCategory_03[二月]) -> 500 | E45: =SUM(tblExpenseCategory_03[三月]) -> 350 | F45: =SUM(tblExpenseCategory_03[四月]) -> 250 | G45: =SUM(tblExpenseCategory_03[五月]) -> 350 | H45: =SUM(tblExpenseCategory_03[六月]) -> 450 | I45: =SUM(tblExpenseCategory_03[七月]) -> 200 | J45: =SUM(tblExpenseCategory_03[八月]) -> 545 | K45: =SUM(tblExpenseCategory_03[九月]) -> 350 | L45: =SUM(tblExpenseCategory_03[十月]) -> 350 | M45: =SUM(tblExpenseCategory_03[十一月]) -> 250 | N45: =SUM(tblExpenseCategory_03[十二月]) -> 350 | O45: =SUM(tblExpenseCategory_03[年度]) -> 6318 | P45: =tblExpenseCategory_03[[#Totals],[年度]]/12 -> 527
B48: 交通
B49: 汽車繳款 | C49: 600 | D49: 600 | E49: 600 | F49: 600 | G49: 600 | H49: 600 | I49: 600 | J49: 600 | K49: 600 | L49: 600 | M49: 600 | N49: 600 | O49: =SUM(tblExpenseCategory_04[[#This Row],[一月]:[十二月]]) -> 7200 | P49: =tblExpenseCategory_04[[#This Row],[年度]]/12 -> 600
B50: 油錢 | C50: 325 | D50: 325 | E50: 325 | F50: 325 | G50: 325 | H50: 500 | I50: 500 | J50: 500 | K50: 325 | L50: 325 | M50: 325 | N50: 325 | O50: =SUM(tblExpenseCategory_04[[#This Row],[一月]:[十二月]]) -> 4425 | P50: =tblExpenseCategory_04[[#This Row],[年度]]/12 -> 369
B51: 維修 | D51: 100 | F51: 100 | H51: 100 | J51: 100 | L51: 100 | O51: =SUM(tblExpenseCategory_04[[#This Row],[一月]:[十二月]]) -> 500 | P51: =tblExpenseCategory_04[[#This Row],[年度]]/12 -> 42
B52: 註冊 / 牌照 | C52: 185 | K52: 225 | O52: =SUM(tblExpenseCategory_04[[#This Row],[一月]:[十二月]]) -> 410 | P52: =tblExpenseCategory_04[[#This Row],[年度]]/12 -> 34
B53: 其他 | G53: 400 | O53: =SUM(tblExpenseCategory_04[[#This Row],[一月]:[十二月]]) -> 400 | P53: =tblExpenseCategory_04[[#This Row],[年度]]/12 -> 33
B54: =UPPER("合計" & B48) -> 合計交通 | C54: =SUM(tblExpenseCategory_04[一月]) -> 1110 | D54: =SUM(tblExpenseCategory_04[二月]) -> 1025 | E54: =SUM(tblExpenseCategory_04[三月]) -> 925 | F54: =SUM(tblExpenseCategory_04[四月]) -> 1025 | G54: =SUM(tblExpenseCategory_04[五月]) -> 1325 | H54: =SUM(tblExpenseCategory_04[六月]) -> 1200 | I54: =SUM(tblExpenseCategory_04[七月]) -> 1100 | J54: =SUM(tblExpenseCategory_04[八月]) -> 1200 | K54: =SUM(tblExpenseCategory_04[九月]) -> 1150 | L54: =SUM(tblExpenseCategory_04[十月]) -> 1025 | M54: =SUM(tblExpenseCategory_04[十一月]) -> 925 | N54: =SUM(tblExpenseCategory_04[十二月]) -> 925 | O54: =SUM(tblExpenseCategory_04[年度]) -> 12935 | P54: =tblExpenseCategory_04[[#Totals],[年度]]/12 -> 1078
B57: 保健
B58: 醫生 / 牙醫 | D58: 35 | G58: 35 | H58: 35 | I58: 35 | L58: 35 | O58: =SUM(tblExpenseCategory_05[[#This Row],[一月]:[十二月]]) -> 175 | P58: =tblExpenseCategory_05[[#This Row],[年度]]/12 -> 15
B59: 醫藥 / 藥品 | C59: 25 | D59: 25 | E59: 25 | F59: 25 | G59: 25 | H59: 25 | I59: 25 | J59: 25 | K59: 25 | L59: 25 | M59: 25 | N59: 25 | O59: =SUM(tblExpenseCategory_05[[#This Row],[一月]:[十二月]]) -> 300 | P59: =tblExpenseCategory_05[[#This Row],[年度]]/12 -> 25
B60: 其他 | E60: 150 | K60: 150 | O60: =SUM(tblExpenseCategory_05[[#This Row],[一月]:[十二月]]) -> 300 | P60: =tblExpenseCategory_05[[#This Row],[年度]]/12 -> 25
B61: =UPPER("合計" & B57) -> 合計保健 | C61: =SUM(tblExpenseCategory_05[一月]) -> 25 | D61: =SUM(tblExpenseCategory_05[二月]) -> 60 | E61: =SUM(tblExpenseCategory_05[三月]) -> 175 | F61: =SUM(tblExpenseCategory_05[四月]) -> 25 | G61: =SUM(tblExpenseCategory_05[五月]) -> 60 | H61: =SUM(tblExpenseCategory_05[六月]) -> 60 | I61: =SUM(tblExpenseCategory_05[七月]) -> 60 | J61: =SUM(tblExpenseCategory_05[八月]) -> 25 | K61: =SUM(tblExpenseCategory_05[九月]) -> 175 | L61: =SUM(tblExpenseCategory_05[十月]) -> 60 | M61: =SUM(tblExpenseCategory_05[十一月]) -> 25 | N61: =SUM(tblExpenseCategory_05[十二月]) -> 25 | O61: =SUM(tblExpenseCategory_05[年度]) -> 775 | P61: =tblExpenseCategory_05[[#Totals],[年度]]/12 -> 65
B64: 保險
B65: 汽車 | C65: 150 | D65: 150 | E65: 150 | F65: 150 | G65: 150 | H65: 150 | I65: 150 | J65: 150 | K65: 150 | L65: 150 | M65: 150 | N65: 150 | O65: =SUM(tblExpenseCategory_06[[#This Row],[一月]:[十二月]]) -> 1800 | P65: =tblExpenseCategory_06[[#This Row],[年度]]/12 -> 150
B66: 保健 | C66: 675 | D66: 675 | E66: 675 | F66: 675 | G66: 675 | H66: 675 | I66: 675 | J66: 675 | K66: 675 | L66: 675 | M66: 675 | N66: 675 | O66: =SUM(tblExpenseCategory_06[[#This Row],[一月]:[十二月]]) -> 8100 | P66: =tblExpenseCategory_06[[#This Row],[年度]]/12 -> 675
B67: 壽險 | C67: 150 | D67: 150 | E67: 150 | F67: 150 | G67: 150 | H67: 150 | I67: 150 | J67: 150 | K67: 150 | L67: 150 | M67: 150 | N67: 150 | O67: =SUM(tblExpenseCategory_06[[#This Row],[一月]:[十二月]]) -> 1800 | P67: =tblExpenseCategory_06[[#This Row],[年度]]/12 -> 150
B68: =UPPER("合計" & B64) -> 合計保險 | C68: =SUM(tblExpenseCategory_06[一月]) -> 975 | D68: =SUM(tblExpenseCategory_06[二月]) -> 975 | E68: =SUM(tblExpenseCategory_06[三月]) -> 975 | F68: =SUM(tblExpenseCategory_06[四月]) -> 975 | G68: =SUM(tblExpenseCategory_06[五月]) -> 975 | H68: =SUM(tblExpenseCategory_06[六月]) -> 975 | I68: =SUM(tblExpenseCategory_06[七月]) -> 975 | J68: =SUM(tblExpenseCategory_06[八月]) -> 975 | K68: =SUM(tblExpenseCategory_06[九月]) -> 975 | L68: =SUM(tblExpenseCategory_06[十月]) -> 975 | M68: =SUM(tblExpenseCategory_06[十一月]) -> 975 | N68: =SUM(tblExpenseCategory_06[十二月]) -> 975 | O68: =SUM(tblExpenseCategory_06[年度]) -> 11700 | P68: =tblExpenseCategory_06[[#Totals],[年度]]/12 -> 975
B71: 教育
B72: 學費 | E72: 400 | K72: 400 | O72: =SUM(tblExpenseCategory_07[[#This Row],[一月]:[十二月]]) -> 800 | P72: =tblExpenseCategory_07[[#This Row],[年度]]/12 -> 67
B73: 書籍 | E73: 225 | K73: 225 | O73: =SUM(tblExpenseCategory_07[[#This Row],[一月]:[十二月]]) -> 450 | P73: =tblExpenseCategory_07[[#This Row],[年度]]/12 -> 38
B74: 其他 | O74: =SUM(tblExpenseCategory_07[[#This Row],[一月]:[十二月]]) -> 0 | P74: =tblExpenseCategory_07[[#This Row],[年度]]/12 -> 0
B75: =UPPER("合計" & B71) -> 合計教育 | C75: =SUM(tblExpenseCategory_07[一月]) -> 0 | D75: =SUM(tblExpenseCategory_07[二月]) -> 0 | E75: =SUM(tblExpenseCategory_07[三月]) -> 625 | F75: =SUM(tblExpenseCategory_07[四月]) -> 0 | G75: =SUM(tblExpenseCategory_07[五月]) -> 0 | H75: =SUM(tblExpenseCategory_07[六月]) -> 0 | I75: =SUM(tblExpenseCategory_07[七月]) -> 0 | J75: =SUM(tblExpenseCategory_07[八月]) -> 0 | K75: =SUM(tblExpenseCategory_07[九月]) -> 625 | L75: =SUM(tblExpenseCategory_07[十月]) -> 0 | M75: =SUM(tblExpenseCategory_07[十一月]) -> 0 | N75: =SUM(tblExpenseCategory_07[十二月]) -> 0 | O75: =SUM(tblExpenseCategory_07[年度]) -> 1250 | P75: =tblExpenseCategory_07[[#Totals],[年度]]/12 -> 104
B78: 慈善
B79: 禮物 | D79: 100 | H79: 100 | L79: 100 | O79: =SUM(tblExpenseCategory_08[[#This Row],[一月]:[十二月]]) -> 300 | P79: =tblExpenseCategory_08[[#This Row],[年度]]/12 -> 25
B80: 慈善捐款 | E80: 100 | G80: 100 | I80: 100 | K80: 100 | M80: 100 | O80: =SUM(tblExpenseCategory_08[[#This Row],[一月]:[十二月]]) -> 500 | P80: =tblExpenseCategory_08[[#This Row],[年度]]/12 -> 42
B81: 其他 | F81: 100 | J81: 100 | N81: 100 | O81: =SUM(tblExpenseCategory_08[[#This Row],[一月]:[十二月]]) -> 300 | P81: =tblExpenseCategory_08[[#This Row],[年度]]/12 -> 25
B82: =UPPER("合計" & B78) -> 合計慈善 | C82: =SUM(tblExpenseCategory_08[一月]) -> 0 | D82: =SUM(tblExpenseCategory_08[二月]) -> 100 | E82: =SUM(tblExpenseCategory_08[三月]) -> 100 | F82: =SUM(tblExpenseCategory_08[四月]) -> 100 | G82: =SUM(tblExpenseCategory_08[五月]) -> 100 | H82: =SUM(tblExpenseCategory_08[六月]) -> 100 | I82: =SUM(tblExpenseCategory_08[七月]) -> 100 | J82: =SUM(tblExpenseCategory_08[八月]) -> 100 | K82: =SUM(tblExpenseCategory_08[九月]) -> 100 | L82: =SUM(tblExpenseCategory_08[十月]) -> 100 | M82: =SUM(tblExpenseCategory_08[十一月]) -> 100 | N82: =SUM(tblExpenseCategory_08[十二月]) -> 100 | O82: =SUM(tblExpenseCategory_08[年度]) -> 1100 | P82: =tblExpenseCategory_08[[#Totals],[年度]]/12 -> 92
B85: 儲蓄
B86: 緊急基金 | C86: 100 | D86: 100 | E86: 100 | F86: 100 | G86: 100 | K86: 100 | L86: 100 | M86: 100 | N86: 100 | O86: =SUM(tblExpenseCategory_09[[#This Row],[一月]:[十二月]]) -> 900 | P86: =tblExpenseCategory_09[[#This Row],[年度]]/12 -> 75
B87: 退休金 (401k, IRA) | C87: 500 | D87: 500 | E87: 500 | F87: 500 | G87: 500 | H87: 500 | I87: 500 | J87: 500 | K87: 500 | L87: 500 | M87: 500 | N87: 500 | O87: =SUM(tblExpenseCategory_09[[#This Row],[一月]:[十二月]]) -> 6000 | P87: =tblExpenseCategory_09[[#This Row],[年度]]/12 -> 500
B88: 轉帳至儲蓄帳戶 | C88: 200 | D88: 200 | E88: 200 | F88: 200 | G88: 200 | K88: 200 | L88: 200 | M88: 200 | N88: 200 | O88: =SUM(tblExpenseCategory_09[[#This Row],[一月]:[十二月]]) -> 1800 | P88: =tblExpenseCategory_09[[#This Row],[年度]]/12 -> 150
B89: =UPPER("合計" & B85) -> 合計儲蓄 | C89: =SUM(tblExpenseCategory_09[一月]) -> 800 | D89: =SUM(tblExpenseCategory_09[二月]) -> 800 | E89: =SUM(tblExpenseCategory_09[三月]) -> 800 | F89: =SUM(tblExpenseCategory_09[四月]) -> 800 | G89: =SUM(tblExpenseCategory_09[五月]) -> 800 | H89: =SUM(tblExpenseCategory_09[六月]) -> 500 | I89: =SUM(tblExpenseCategory_09[七月]) -> 500 | J89: =SUM(tblExpenseCategory_09[八月]) -> 500 | K89: =SUM(tblExpenseCategory_09[九月]) -> 800 | L89: =SUM(tblExpenseCategory_09[十月]) -> 800 | M89: =SUM(tblExpenseCategory_09[十一月]) -> 800 | N89: =SUM(tblExpenseCategory_09[十二月]) -> 800 | O89: =SUM(tblExpenseCategory_09[年度]) -> 8700 | P89: =tblExpenseCategory_09[[#Totals],[年度]]/12 -> 725
B92: 必要支付
B93: 信用卡 #1 | C93: 145 | D93: 145 | E93: 145 | F93: 145 | G93: 145 | H93: 145 | I93: 145 | J93: 145 | K93: 145 | L93: 145 | M93: 145 | N93: 145 | O93: =SUM(tblExpenseCategory_10[[#This Row],[一月]:[十二月]]) -> 1740 | P93: =tblExpenseCategory_10[[#This Row],[年度]]/12 -> 145
B94: 聯邦稅 | C94: 450 | F94: 450 | I94: 450 | L94: 450 | O94: =SUM(tblExpenseCategory_10[[#This Row],[一月]:[十二月]]) -> 1800 | P94: =tblExpenseCategory_10[[#This Row],[年度]]/12 -> 150
B95: 學生貸款 | C95: 55 | D95: 55 | E95: 55 | F95: 55 | G95: 55 | H95: 55 | I95: 55 | J95: 55 | K95: 55 | L95: 55 | M95: 55 | N95: 55 | O95: =SUM(tblExpenseCategory_10[[#This Row],[一月]:[十二月]]) -> 660 | P95: =tblExpenseCategory_10[[#This Row],[年度]]/12 -> 55
B96: =UPPER("合計" & B92) -> 合計必要支付 | C96: =SUM(tblExpenseCategory_10[一月]) -> 650 | D96: =SUM(tblExpenseCategory_10[二月]) -> 200 | E96: =SUM(tblExpenseCategory_10[三月]) -> 200 | F96: =SUM(tblExpenseCategory_10[四月]) -> 650 | G96: =SUM(tblExpenseCategory_10[五月]) -> 200 | H96: =SUM(tblExpenseCategory_10[六月]) -> 200 | I96: =SUM(tblExpenseCategory_10[七月]) -> 650 | J96: =SUM(tblExpenseCategory_10[八月]) -> 200 | K96: =SUM(tblExpenseCategory_10[九月]) -> 200 | L96: =SUM(tblExpenseCategory_10[十月]) -> 650 | M96: =SUM(tblExpenseCategory_10[十一月]) -> 200 | N96: =SUM(tblExpenseCategory_10[十二月]) -> 200 | O96: =SUM(tblExpenseCategory_10[年度]) -> 4200 | P96: =tblExpenseCategory_10[[#Totals],[年度]]/12 -> 350
O100: =SUM(tblExpenseCategory_11[[#This Row],[一月]:[十二月]]) -> 0 | P100: =tblExpenseCategory_11[[#This Row],[年度]]/12 -> 0
O101: =SUM(tblExpenseCategory_11[[#This Row],[一月]:[十二月]]) -> 0 | P101: =tblExpenseCategory_11[[#This Row],[年度]]/12 -> 0
O102: =SUM(tblExpenseCategory_11[[#This Row],[一月]:[十二月]]) -> 0 | P102: =tblExpenseCategory_11[[#This Row],[年度]]/12 -> 0
B103: =UPPER("合計" & B99) -> 合計 | C103: =SUM(tblExpenseCategory_11[一月]) -> 0 | D103: =SUM(tblExpenseCategory_11[二月]) -> 0 | E103: =SUM(tblExpenseCategory_11[三月]) -> 0 | F103: =SUM(tblExpenseCategory_11[四月]) -> 0 | G103: =SUM(tblExpenseCategory_11[五月]) -> 0 | H103: =SUM(tblExpenseCategory_11[六月]) -> 0 | I103: =SUM(tblExpenseCategory_11[七月]) -> 0 | J103: =SUM(tblExpenseCategory_11[八月]) -> 0 | K103: =SUM(tblExpenseCategory_11[九月]) -> 0 | L103: =SUM(tblExpenseCategory_11[十月]) -> 0 | M103: =SUM(tblExpenseCategory_11[十一月]) -> 0 | N103: =SUM(tblExpenseCategory_11[十二月]) -> 0 | O103: =SUM(tblExpenseCategory_11[年度]) -> 0 | P103: =tblExpenseCategory_11[[#Totals],[年度]]/12 -> 0
O107: =SUM(tblExpenseCategory_12[[#This Row],[一月]:[十二月]]) -> 0 | P107: =tblExpenseCategory_12[[#This Row],[年度]]/12 -> 0
O108: =SUM(tblExpenseCategory_12[[#This Row],[一月]:[十二月]]) -> 0 | P108: =tblExpenseCategory_12[[#This Row],[年度]]/12 -> 0
O109: =SUM(tblExpenseCategory_12[[#This Row],[一月]:[十二月]]) -> 0 | P109: =tblExpenseCategory_12[[#This Row],[年度]]/12 -> 0
B110: =UPPER("合計" & B106) -> 合計 | C110: =SUM(tblExpenseCategory_12[一月]) -> 0 | D110: =SUM(tblExpenseCategory_12[二月]) -> 0 | E110: =SUM(tblExpenseCategory_12[三月]) -> 0 | F110: =SUM(tblExpenseCategory_12[四月]) -> 0 | G110: =SUM(tblExpenseCategory_12[五月]) -> 0 | H110: =SUM(tblExpenseCategory_12[六月]) -> 0 | I110: =SUM(tblExpenseCategory_12[七月]) -> 0 | J110: =SUM(tblExpenseCategory_12[八月]) -> 0 | K110: =SUM(tblExpenseCategory_12[九月]) -> 0 | L110: =SUM(tblExpenseCategory_12[十月]) -> 0 | M110: =SUM(tblExpenseCategory_12[十一月]) -> 0 | N110: =SUM(tblExpenseCategory_12[十二月]) -> 0 | O110: =SUM(tblExpenseCategory_12[年度]) -> 0 | P110: =tblExpenseCategory_12[[#Totals],[年度]]/12 -> 0
O114: =SUM(tblExpenseCategory_13[[#This Row],[一月]:[十二月]]) -> 0 | P114: =tblExpenseCategory_13[[#This Row],[年度]]/12 -> 0
O115: =SUM(tblExpenseCategory_13[[#This Row],[一月]:[十二月]]) -> 0 | P115: =tblExpenseCategory_13[[#This Row],[年度]]/12 -> 0
O116: =SUM(tblExpenseCategory_13[[#This Row],[一月]:[十二月]]) -> 0 | P116: =tblExpenseCategory_13[[#This Row],[年度]]/12 -> 0
B117: =UPPER("合計" & B113) -> 合計 | C117: =SUM(tblExpenseCategory_13[一月]) -> 0 | D117: =SUM(tblExpenseCategory_13[二月]) -> 0 | E117: =SUM(tblExpenseCategory_13[三月]) -> 0 | F117: =SUM(tblExpenseCategory_13[四月]) -> 0 | G117: =SUM(tblExpenseCategory_13[五月]) -> 0 | H117: =SUM(tblExpenseCategory_13[六月]) -> 0 | I117: =SUM(tblExpenseCategory_13[七月]) -> 0 | J117: =SUM(tblExpenseCategory_13[八月]) -> 0 | K117: =SUM(tblExpenseCategory_13[九月]) -> 0 | L117: =SUM(tblExpenseCategory_13[十月]) -> 0 | M117: =SUM(tblExpenseCategory_13[十一月]) -> 0 | N117: =SUM(tblExpenseCategory_13[十二月]) -> 0 | O117: =SUM(tblExpenseCategory_13[年度]) -> 0 | P117: =tblExpenseCategory_13[[#Totals],[年度]]/12 -> 0
O121: =SUM(tblExpenseCategory_14[[#This Row],[一月]:[十二月]]) -> 0 | P121: =tblExpenseCategory_14[[#This Row],[年度]]/12 -> 0
O122: =SUM(tblExpenseCategory_14[[#This Row],[一月]:[十二月]]) -> 0 | P122: =tblExpenseCategory_14[[#This Row],[年度]]/12 -> 0
O123: =SUM(tblExpenseCategory_14[[#This Row],[一月]:[十二月]]) -> 0 | P123: =tblExpenseCategory_14[[#This Row],[年度]]/12 -> 0
B124: =UPPER("合計" & B120) -> 合計 | C124: =SUM(tblExpenseCategory_14[一月]) -> 0 | D124: =SUM(tblExpenseCategory_14[二月]) -> 0 | E124: =SUM(tblExpenseCategory_14[三月]) -> 0 | F124: =SUM(tblExpenseCategory_14[四月]) -> 0 | G124: =SUM(tblExpenseCategory_14[五月]) -> 0 | H124: =SUM(tblExpenseCategory_14[六月]) -> 0 | I124: =SUM(tblExpenseCategory_14[七月]) -> 0 | J124: =SUM(tblExpenseCategory_14[八月]) -> 0 | K124: =SUM(tblExpenseCategory_14[九月]) -> 0 | L124: =SUM(tblExpenseCategory_14[十月]) -> 0 | M124: =SUM(tblExpenseCategory_14[十一月]) -> 0 | N124: =SUM(tblExpenseCategory_14[十二月]) -> 0 | O124: =SUM(tblExpenseCategory_14[年度]) -> 0 | P124: =tblExpenseCategory_14[[#Totals],[年度]]/12 -> 0
O128: =SUM(tblExpenseCategory_15[[#This Row],[一月]:[十二月]]) -> 0 | P128: =tblExpenseCategory_15[[#This Row],[年度]]/12 -> 0
O129: =SUM(tblExpenseCategory_15[[#This Row],[一月]:[十二月]]) -> 0 | P129: =tblExpenseCategory_15[[#This Row],[年度]]/12 -> 0
O130: =SUM(tblExpenseCategory_15[[#This Row],[一月]:[十二月]]) -> 0 | P130: =tblExpenseCategory_15[[#This Row],[年度]]/12 -> 0
B131: =UPPER("合計" & B127) -> 合計 | C131: =SUM(tblExpenseCategory_15[一月]) -> 0 | D131: =SUM(tblExpenseCategory_15[二月]) -> 0 | E131: =SUM(tblExpenseCategory_15[三月]) -> 0 | F131: =SUM(tblExpenseCategory_15[四月]) -> 0 | G131: =SUM(tblExpenseCategory_15[五月]) -> 0 | H131: =SUM(tblExpenseCategory_15[六月]) -> 0 | I131: =SUM(tblExpenseCategory_15[七月]) -> 0 | J131: =SUM(tblExpenseCategory_15[八月]) -> 0 | K131: =SUM(tblExpenseCategory_15[九月]) -> 0 | L131: =SUM(tblExpenseCategory_15[十月]) -> 0 | M131: =SUM(tblExpenseCategory_15[十一月]) -> 0 | N131: =SUM(tblExpenseCategory_15[十二月]) -> 0 | O131: =SUM(tblExpenseCategory_15[年度]) -> 0 | P131: =tblExpenseCategory_15[[#Totals],[年度]]/12 -> 0

Sheet 設定
B1: 陳家 2012
B2: 收入 | D2: 費用
B3: 薪水和小費
B4: 利息收入 | D4: 家庭支出 | F4: 家庭支出 | H4: 每日開銷 | J4: 子女
B5: 股息 | D5: 每日開銷 | F5: 貸款 / 房租 | H5: 日常雜貨 | J5: 醫療
B6: 禮物 | D6: 子女 | F6: 電 | H6: 個人用品 | J6: 衣物
B7: 退款 / 費用補助 | D7: 交通 | F7: 瓦斯 / 汽油 | H7: 衣物 | J7: 學費
B8: 由儲蓄帳戶轉出 | D8: 保健 | F8: 水 / 汙水處理 / 垃圾 | H8: 清潔服務 | J8: 學校午餐費
B9: 其他 | D9: 保險 | F9: 電話 | H9: 用餐 / 外食 | J9: 學校用品
D10: 教育 | F10: 有線電視 / 衛星電視 | H10: 乾洗 | J10: 保姆
D11: 慈善 | F11: 網路 | H11: 沙龍 / 理髮 | J11: 玩具 / 遊戲
D12: 儲蓄 | F12: 裝潢 / 傢俱 | H12: 其他 | J12: 其他
D13: 必要支付 | F13: 草坪 / 花園
D14: 娛樂 | F14: 家用品
D15: 寵物 | F15: 保養
D16: 訂閱 | F16: 翻新
D17: 假期 | F17: 其他
D18: 雜項
F20: 交通 | H20: 保健 | J20: 保險
F21: 汽車繳款 | H21: 醫生 / 牙醫 | J21: 汽車
F22: 油錢 | H22: 醫藥 / 藥品 | J22: 保健
F23: 公車 / 計程車 / 火車費用 | H23: 健身房會費 | J23: 房屋險 / 租金
F24: 維修 | H24: 急用 | J24: 壽險
F25: 註冊 / 牌照 | H25: 其他 | J25: 其他
F26: 其他
F29: 教育 | H29: 慈善 | J29: 儲蓄
F30: 學費 | H30: 禮物 | J30: 緊急基金
F31: 書籍 | H31: 慈善捐款 | J31: 轉帳至儲蓄帳戶
F32: 音樂課 | H32: 宗教捐款 | J32: 退休金 (401k, ira)
F33: 其他 | H33: 其他 | J33: 投資
J34: 大學
J35: 其他
F38: 必要支付 | H38: 娛樂 | J38: 寵物
F39: 學生貸款 | H39: 影片 / DVD | J39: 食物
F40: 其他貸款 | H40: 音樂 | J40: 醫療
F41: 信用卡 #1 | H41: 遊戲 | J41: 玩具 / 生活用品
F42: 信用卡 #2 | H42: 租賃物品 | J42: 其他
F43: 信用卡 #3 | H43: 電影 / 劇院
F44: 贍養費 / 子女撫養 | H44: 音樂會 / 舞台劇
F45: 聯邦稅 | H45: 書籍
F46: 財產稅 | H46: 嗜好
F47: 州 / 地方稅 | H47: 底片 / 相片
F48: 社區管理費 | H48: 運動
F49: 法律諮詢費 | H49: 戶外休閒
F50: 其他 | H50: 玩具 / 小工具
H51: 其他
F53: 訂閱 | H53: 假期 | J53: 雜項
F54: 報紙 | H54: 旅遊 | J54: 銀行管理費
F55: 雜誌 | H55: 住宿 | J55: 郵資
F56: 會費 | H56: 食物 | J56: 其他
F57: 會員費 | H57: 租車
F58: 其他 | H58: 娛樂
H59: 其他

Sheet 圖表資料 (hidden)
B1: *** 此表格應隱藏 ***
B4: 期間 | C4: 3
C6: 一月 | D6: 二月 | E6: 三月 | F6: 四月 | G6: 五月 | H6: 六月 | I6: 七月 | J6: 八月 | K6: 九月 | L6: 十月 | M6: 十一月 | N6: 十二月 | O6: 年度 | P6: 平均值
B7: =LOWER(預算!B127) ->  | C7: =SUM(tblExpenseCategory_15[一月]) -> 0 | D7: =SUM(tblExpenseCategory_15[二月]) -> 0 | E7: =SUM(tblExpenseCategory_15[三月]) -> 0 | F7: =SUM(tblExpenseCategory_15[四月]) -> 0 | G7: =SUM(tblExpenseCategory_15[五月]) -> 0 | H7: =SUM(tblExpenseCategory_15[六月]) -> 0 | I7: =SUM(tblExpenseCategory_15[七月]) -> 0 | J7: =SUM(tblExpenseCategory_15[八月]) -> 0 | K7: =SUM(tblExpenseCategory_15[九月]) -> 0 | L7: =SUM(tblExpenseCategory_15[十月]) -> 0 | M7: =SUM(tblExpenseCategory_15[十一月]) -> 0 | N7: =SUM(tblExpenseCategory_15[十二月]) -> 0 | O7: =SUM(tblExpenseCategory_15[年度]) -> 0 | P7: =SUM(tblExpenseCategory_15[平均值]) -> 0
B8: =LOWER(預算!B120) ->  | C8: =SUM(tblExpenseCategory_14[一月]) -> 0 | D8: =SUM(tblExpenseCategory_14[二月]) -> 0 | E8: =SUM(tblExpenseCategory_14[三月]) -> 0 | F8: =SUM(tblExpenseCategory_14[四月]) -> 0 | G8: =SUM(tblExpenseCategory_14[五月]) -> 0 | H8: =SUM(tblExpenseCategory_14[六月]) -> 0 | I8: =SUM(tblExpenseCategory_14[七月]) -> 0 | J8: =SUM(tblExpenseCategory_14[八月]) -> 0 | K8: =SUM(tblExpenseCategory_14[九月]) -> 0 | L8: =SUM(tblExpenseCategory_14[十月]) -> 0 | M8: =SUM(tblExpenseCategory_14[十一月]) -> 0 | N8: =SUM(tblExpenseCategory_14[十二月]) -> 0 | O8: =SUM(tblExpenseCategory_14[年度]) -> 0 | P8: =SUM(tblExpenseCategory_14[平均值]) -> 0
B9: =LOWER(預算!B113) ->  | C9: =SUM(tblExpenseCategory_13[一月]) -> 0 | D9: =SUM(tblExpenseCategory_13[二月]) -> 0 | E9: =SUM(tblExpenseCategory_13[三月]) -> 0 | F9: =SUM(tblExpenseCategory_13[四月]) -> 0 | G9: =SUM(tblExpenseCategory_13[五月]) -> 0 | H9: =SUM(tblExpenseCategory_13[六月]) -> 0 | I9: =SUM(tblExpenseCategory_13[七月]) -> 0 | J9: =SUM(tblExpenseCategory_13[八月]) -> 0 | K9: =SUM(tblExpenseCategory_13[九月]) -> 0 | L9: =SUM(tblExpenseCategory_13[十月]) -> 0 | M9: =SUM(tblExpenseCategory_13[十一月]) -> 0 | N9: =SUM(tblExpenseCategory_13[十二月]) -> 0 | O9: =SUM(tblExpenseCategory_13[年度]) -> 0 | P9: =SUM(tblExpenseCategory_13[平均值]) -> 0
B10: =LOWER(預算!B106) ->  | C10: =SUM(tblExpenseCategory_12[一月]) -> 0 | D10: =SUM(tblExpenseCategory_12[二月]) -> 0 | E10: =SUM(tblExpenseCategory_12[三月]) -> 0 | F10: =SUM(tblExpenseCategory_12[四月]) -> 0 | G10: =SUM(tblExpenseCategory_12[五月]) -> 0 | H10: =SUM(tblExpenseCategory_12[六月]) -> 0 | I10: =SUM(tblExpenseCategory_12[七月]) -> 0 | J10: =SUM(tblExpenseCategory_12[八月]) -> 0 | K10: =SUM(tblExpenseCategory_12[九月]) -> 0 | L10: =SUM(tblExpenseCategory_12[十月]) -> 0 | M10: =SUM(tblExpenseCategory_12[十一月]) -> 0 | N10: =SUM(tblExpenseCategory_12[十二月]) -> 0 | O10: =SUM(tblExpenseCategory_12[年度]) -> 0 | P10: =SUM(tblExpenseCategory_12[平均值]) -> 0
B11: =LOWER(預算!B99) ->  | C11: =SUM(tblExpenseCategory_11[一月]) -> 0 | D11: =SUM(tblExpenseCategory_11[二月]) -> 0 | E11: =SUM(tblExpenseCategory_11[三月]) -> 0 | F11: =SUM(tblExpenseCategory_11[四月]) -> 0 | G11: =SUM(tblExpenseCategory_11[五月]) -> 0 | H11: =SUM(tblExpenseCategory_11[六月]) -> 0 | I11: =SUM(tblExpenseCategory_11[七月]) -> 0 | J11: =SUM(tblExpenseCategory_11[八月]) -> 0 | K11: =SUM(tblExpenseCategory_11[九月]) -> 0 | L11: =SUM(tblExpenseCategory_11[十月]) -> 0 | M11: =SUM(tblExpenseCategory_11[十一月]) -> 0 | N11: =SUM(tblExpenseCategory_11[十二月]) -> 0 | O11: =SUM(tblExpenseCategory_11[年度]) -> 0 | P11: =SUM(tblExpenseCategory_11[平均值]) -> 0
B12: =LOWER(預算!B92) -> 必要支付 | C12: =SUM(tblExpenseCategory_10[一月]) -> 650 | D12: =SUM(tblExpenseCategory_10[二月]) -> 200 | E12: =SUM(tblExpenseCategory_10[三月]) -> 200 | F12: =SUM(tblExpenseCategory_10[四月]) -> 650 | G12: =SUM(tblExpenseCategory_10[五月]) -> 200 | H12: =SUM(tblExpenseCategory_10[六月]) -> 200 | I12: =SUM(tblExpenseCategory_10[七月]) -> 650 | J12: =SUM(tblExpenseCategory_10[八月]) -> 200 | K12: =SUM(tblExpenseCategory_10[九月]) -> 200 | L12: =SUM(tblExpenseCategory_10[十月]) -> 650 | M12: =SUM(tblExpenseCategory_10[十一月]) -> 200 | N12: =SUM(tblExpenseCategory_10[十二月]) -> 200 | O12: =SUM(tblExpenseCategory_10[年度]) -> 4,200 | P12: =SUM(tblExpenseCategory_10[平均值]) -> 350
B13: =LOWER(預算!B85) -> 儲蓄 | C13: =SUM(tblExpenseCategory_09[一月]) -> 800 | D13: =SUM(tblExpenseCategory_09[二月]) -> 800 | E13: =SUM(tblExpenseCategory_09[三月]) -> 800 | F13: =SUM(tblExpenseCategory_09[四月]) -> 800 | G13: =SUM(tblExpenseCategory_09[五月]) -> 800 | H13: =SUM(tblExpenseCategory_09[六月]) -> 500 | I13: =SUM(tblExpenseCategory_09[七月]) -> 500 | J13: =SUM(tblExpenseCategory_09[八月]) -> 500 | K13: =SUM(tblExpenseCategory_09[九月]) -> 800 | L13: =SUM(tblExpenseCategory_09[十月]) -> 800 | M13: =SUM(tblExpenseCategory_09[十一月]) -> 800 | N13: =SUM(tblExpenseCategory_09[十二月]) -> 800 | O13: =SUM(tblExpenseCategory_09[年度]) -> 8,700 | P13: =SUM(tblExpenseCategory_09[平均值]) -> 725
B14: =LOWER(預算!B78) -> 慈善 | C14: =SUM(tblExpenseCategory_08[一月]) -> 0 | D14: =SUM(tblExpenseCategory_08[二月]) -> 100 | E14: =SUM(tblExpenseCategory_08[三月]) -> 100 | F14: =SUM(tblExpenseCategory_08[四月]) -> 100 | G14: =SUM(tblExpenseCategory_08[五月]) -> 100 | H14: =SUM(tblExpenseCategory_08[六月]) -> 100 | I14: =SUM(tblExpenseCategory_08[七月]) -> 100 | J14: =SUM(tblExpenseCategory_08[八月]) -> 100 | K14: =SUM(tblExpenseCategory_08[九月]) -> 100 | L14: =SUM(tblExpenseCategory_08[十月]) -> 100 | M14: =SUM(tblExpenseCategory_08[十一月]) -> 100 | N14: =SUM(tblExpenseCategory_08[十二月]) -> 100 | O14: =SUM(tblExpenseCategory_08[年度]) -> 1,100 | P14: =SUM(tblExpenseCategory_08[平均值]) -> 92
B15: =LOWER(預算!B71) -> 教育 | C15: =SUM(tblExpenseCategory_07[一月]) -> 0 | D15: =SUM(tblExpenseCategory_07[二月]) -> 0 | E15: =SUM(tblExpenseCategory_07[三月]) -> 625 | F15: =SUM(tblExpenseCategory_07[四月]) -> 0 | G15: =SUM(tblExpenseCategory_07[五月]) -> 0 | H15: =SUM(tblExpenseCategory_07[六月]) -> 0 | I15: =SUM(tblExpenseCategory_07[七月]) -> 0 | J15: =SUM(tblExpenseCategory_07[八月]) -> 0 | K15: =SUM(tblExpenseCategory_07[九月]) -> 625 | L15: =SUM(tblExpenseCategory_07[十月]) -> 0 | M15: =SUM(tblExpenseCategory_07[十一月]) -> 0 | N15: =SUM(tblExpenseCategory_07[十二月]) -> 0 | O15: =SUM(tblExpenseCategory_07[年度]) -> 1,250 | P15: =SUM(tblExpenseCategory_07[平均值]) -> 104
B16: =LOWER(預算!B64) -> 保險 | C16: =SUM(tblExpenseCategory_06[一月]) -> 975 | D16: =SUM(tblExpenseCategory_06[二月]) -> 975 | E16: =SUM(tblExpenseCategory_06[三月]) -> 975 | F16: =SUM(tblExpenseCategory_06[四月]) -> 975 | G16: =SUM(tblExpenseCategory_06[五月]) -> 975 | H16: =SUM(tblExpenseCategory_06[六月]) -> 975 | I16: =SUM(tblExpenseCategory_06[七月]) -> 975 | J16: =SUM(tblExpenseCategory_06[八月]) -> 975 | K16: =SUM(tblExpenseCategory_06[九月]) -> 975 | L16: =SUM(tblExpenseCategory_06[十月]) -> 975 | M16: =SUM(tblExpenseCategory_06[十一月]) -> 975 | N16: =SUM(tblExpenseCategory_06[十二月]) -> 975 | O16: =SUM(tblExpenseCategory_06[年度]) -> 11,700 | P16: =SUM(tblExpenseCategory_06[平均值]) -> 975
B17: =LOWER(預算!B57) -> 保健 | C17: =SUM(tblExpenseCategory_05[一月]) -> 25 | D17: =SUM(tblExpenseCategory_05[二月]) -> 60 | E17: =SUM(tblExpenseCategory_05[三月]) -> 175 | F17: =SUM(tblExpenseCategory_05[四月]) -> 25 | G17: =SUM(tblExpenseCategory_05[五月]) -> 60 | H17: =SUM(tblExpenseCategory_05[六月]) -> 60 | I17: =SUM(tblExpenseCategory_05[七月]) -> 60 | J17: =SUM(tblExpenseCategory_05[八月]) -> 25 | K17: =SUM(tblExpenseCategory_05[九月]) -> 175 | L17: =SUM(tblExpenseCategory_05[十月]) -> 60 | M17: =SUM(tblExpenseCategory_05[十一月]) -> 25 | N17: =SUM(tblExpenseCategory_05[十二月]) -> 25 | O17: =SUM(tblExpenseCategory_05[年度]) -> 775 | P17: =SUM(tblExpenseCategory_05[平均值]) -> 65
B18: =LOWER(預算!B48) -> 交通 | C18: =SUM(tblExpenseCategory_04[一月]) -> 1,110 | D18: =SUM(tblExpenseCategory_04[二月]) -> 1,025 | E18: =SUM(tblExpenseCategory_04[三月]) -> 925 | F18: =SUM(tblExpenseCategory_04[四月]) -> 1,025 | G18: =SUM(tblExpenseCategory_04[五月]) -> 1,325 | H18: =SUM(tblExpenseCategory_04[六月]) -> 1,200 | I18: =SUM(tblExpenseCategory_04[七月]) -> 1,100 | J18: =SUM(tblExpenseCategory_04[八月]) -> 1,200 | K18: =SUM(tblExpenseCategory_04[九月]) -> 1,150 | L18: =SUM(tblExpenseCategory_04[十月]) -> 1,025 | M18: =SUM(tblExpenseCategory_04[十一月]) -> 925 | N18: =SUM(tblExpenseCategory_04[十二月]) -> 925 | O18: =SUM(tblExpenseCategory_04[年度]) -> 12,935 | P18: =SUM(tblExpenseCategory_04[平均值]) -> 1,078
B19: =LOWER(預算!B39) -> 子女 | C19: =SUM(tblExpenseCategory_03[一月]) -> 2,373 | D19: =SUM(tblExpenseCategory_03[二月]) -> 500 | E19: =SUM(tblExpenseCategory_03[三月]) -> 350 | F19: =SUM(tblExpenseCategory_03[四月]) -> 250 | G19: =SUM(tblExpenseCategory_03[五月]) -> 350 | H19: =SUM(tblExpenseCategory_03[六月]) -> 450 | I19: =SUM(tblExpenseCategory_03[七月]) -> 200 | J19: =SUM(tblExpenseCategory_03[八月]) -> 545 | K19: =SUM(tblExpenseCategory_03[九月]) -> 350 | L19: =SUM(tblExpenseCategory_03[十月]) -> 350 | M19: =SUM(tblExpenseCategory_03[十一月]) -> 250 | N19: =SUM(tblExpenseCategory_03[十二月]) -> 350 | O19: =SUM(tblExpenseCategory_03[年度]) -> 6,318 | P19: =SUM(tblExpenseCategory_03[平均值]) -> 527
B20: =LOWER(預算!B30) -> 每日開銷 | C20: =SUM(tblExpenseCategory_02[一月]) -> 795 | D20: =SUM(tblExpenseCategory_02[二月]) -> 375 | E20: =SUM(tblExpenseCategory_02[三月]) -> 550 | F20: =SUM(tblExpenseCategory_02[四月]) -> 825 | G20: =SUM(tblExpenseCategory_02[五月]) -> 500 | H20: =SUM(tblExpenseCategory_02[六月]) -> 450 | I20: =SUM(tblExpenseCategory_02[七月]) -> 875 | J20: =SUM(tblExpenseCategory_02[八月]) -> 475 | K20: =SUM(tblExpenseCategory_02[九月]) -> 400 | L20: =SUM(tblExpenseCategory_02[十月]) -> 825 | M20: =SUM(tblExpenseCategory_02[十一月]) -> 575 | N20: =SUM(tblExpenseCategory_02[十二月]) -> 375 | O20: =SUM(tblExpenseCategory_02[年度]) -> 7,020 | P20: =SUM(tblExpenseCategory_02[平均值]) -> 585
B21: =LOWER(預算!B21) -> 家庭支出 | C21: =SUM(tblExpenseCategory_01[一月]) -> 1,208 | D21: =SUM(tblExpenseCategory_01[二月]) -> 1,208 | E21: =SUM(tblExpenseCategory_01[三月]) -> 1,233 | F21: =SUM(tblExpenseCategory_01[四月]) -> 1,208 | G21: =SUM(tblExpenseCategory_01[五月]) -> 1,158 | H21: =SUM(tblExpenseCategory_01[六月]) -> 1,183 | I21: =SUM(tblExpenseCategory_01[七月]) -> 1,283 | J21: =SUM(tblExpenseCategory_01[八月]) -> 1,333 | K21: =SUM(tblExpenseCategory_01[九月]) -> 1,208 | L21: =SUM(tblExpenseCategory_01[十月]) -> 1,158 | M21: =SUM(tblExpenseCategory_01[十一月]) -> 1,208 | N21: =SUM(tblExpenseCategory_01[十二月]) -> 1,208 | O21: =SUM(tblExpenseCategory_01[年度]) -> 14,596 | P21: =SUM(tblExpenseCategory_01[平均值]) -> 1,216
B26: 累積現金流 | C26: =SUM(預算!$C$8:C$8) -> -3,714 | D26: =SUM(預算!$C$8:D$8) -> 76 | E26: =SUM(預算!$C$8:E$8) -> -1,857 | F26: =SUM(預算!$C$8:F$8) -> -3,670 | G26: =SUM(預算!$C$8:G$8) -> -138 | H26: =SUM(預算!$C$8:H$8) -> -3,731 | I26: =SUM(預算!$C$8:I$8) -> -7,974 | J26: =SUM(預算!$C$8:J$8) -> -6,827 | K26: =SUM(預算!$C$8:K$8) -> -8,810 | L26: =SUM(預算!$C$8:L$8) -> -10,753 | M26: =SUM(預算!$C$8:M$8) -> -6,811 | N26: =SUM(預算!$C$8:N$8) -> -7,769 | O26: =SUM(預算!$C$8:O$8) -> -15,538
B28: 正現金流年度 | C28: =IF(預算!C$8<0,NA(),IF(period+2<>COLUMN(預算!C$8),NA(),預算!C$8)) ->  | D28: =IF(預算!D$8<0,NA(),IF(period+2<>COLUMN(預算!D$8),NA(),預算!D$8)) ->  | E28: =IF(預算!E$8<0,NA(),IF(period+2<>COLUMN(預算!E$8),NA(),預算!E$8)) ->  | F28: =IF(預算!F$8<0,NA(),IF(period+2<>COLUMN(預算!F$8),NA(),預算!F$8)) ->  | G28: =IF(預算!G$8<0,NA(),IF(period+2<>COLUMN(預算!G$8),NA(),預算!G$8)) ->  | H28: =IF(預算!H$8<0,NA(),IF(period+2<>COLUMN(預算!H$8),NA(),預算!H$8)) ->  | I28: =IF(預算!I$8<0,NA(),IF(period+2<>COLUMN(預算!I$8),NA(),預算!I$8)) ->  | J28: =IF(預算!J$8<0,NA(),IF(period+2<>COLUMN(預算!J$8),NA(),預算!J$8)) ->  | K28: =IF(預算!K$8<0,NA(),IF(period+2<>COLUMN(預算!K$8),NA(),預算!K$8)) ->  | L28: =IF(預算!L$8<0,NA(),IF(period+2<>COLUMN(預算!L$8),NA(),預算!L$8)) ->  | M28: =IF(預算!M$8<0,NA(),IF(period+2<>COLUMN(預算!M$8),NA(),預算!M$8)) ->  | N28: =IF(預算!N$8<0,NA(),IF(period+2<>COLUMN(預算!N$8),NA(),預算!N$8)) ->  | O28: =IF(預算!O$8<0,NA(),IF(period+2<>COLUMN(預算!O$8),NA(),預算!O$8)) -> 
B29: 負現金流年度 | C29: =IF(預算!C$8>=0,NA(),IF(period+2<>COLUMN(預算!C$8),NA(),預算!C$8)) ->  | D29: =IF(預算!D$8>=0,NA(),IF(period+2<>COLUMN(預算!D$8),NA(),預算!D$8)) ->  | E29: =IF(預算!E$8>=0,NA(),IF(period+2<>COLUMN(預算!E$8),NA(),預算!E$8)) -> -1,933 | F29: =IF(預算!F$8>=0,NA(),IF(period+2<>COLUMN(預算!F$8),NA(),預算!F$8)) ->  | G29: =IF(預算!G$8>=0,NA(),IF(period+2<>COLUMN(預算!G$8),NA(),預算!G$8)) ->  | H29: =IF(預算!H$8>=0,NA(),IF(period+2<>COLUMN(預算!H$8),NA(),預算!H$8)) ->  | I29: =IF(預算!I$8>=0,NA(),IF(period+2<>COLUMN(預算!I$8),NA(),預算!I$8)) ->  | J29: =IF(預算!J$8>=0,NA(),IF(period+2<>COLUMN(預算!J$8),NA(),預算!J$8)) ->  | K29: =IF(預算!K$8>=0,NA(),IF(period+2<>COLUMN(預算!K$8),NA(),預算!K$8)) ->  | L29: =IF(預算!L$8>=0,NA(),IF(period+2<>COLUMN(預算!L$8),NA(),預算!L$8)) ->  | M29: =IF(預算!M$8>=0,NA(),IF(period+2<>COLUMN(預算!M$8),NA(),預算!M$8)) ->  | N29: =IF(預算!N$8>=0,NA(),IF(period+2<>COLUMN(預算!N$8),NA(),預算!N$8)) ->  | O29: =IF(預算!O$8>=0,NA(),IF(period+2<>COLUMN(預算!O$8),NA(),預算!O$8)) -> 
B37: =LOWER(display_long_period) -> 三月
B38: =display_long_period & "收入" -> 三月收入 | C38: =INDEX(預算!$C$6:$P$6,,period) -> NT$4,000
B39: =display_long_period & "支出：" & TEXT(INDEX(預算!$C$7:$P$7,,period),"$#,##0") -> 三月支出：$5,933 | C39: =INDEX(預算!$C$7:$P$7,,period) -> NT$5,933
B40: =display_long_period & "現金流" -> 三月現金流 | C40: =ABS(INDEX(預算!$C$8:$P$8,,period)) -> NT$1,933 | D40: =REPT("-",INDEX(預算!$C$8:$P$8,,period)<0) -> -
